bitfinex/quotes_BTCUSD_20240605
["timestamp","ask_amount","ask_price","bid_price","bid_amount"]
[1717587651166,0.06725937,70925.0,70923.0,0.03206103]
[1717587651572,0.06725937,70925.0,70923.0,0.01432029]
[1717587653301,0.00415937,70924.0,70923.0,0.01432029]
[1717587653507,0.01127292,70924.0,70923.0,0.01432029]
[1717587654525,0.15199185,70924.0,70923.0,0.01432029]
[1717587654706,0.15569185,70924.0,70923.0,0.01432029]
[1717587655489,0.15659185,70924.0,70923.0,0.01432029]
[1717587658358,0.00045937,70918.0,70917.0,0.000946]
[1717587658591,0.2153783,70918.0,70917.0,0.01526629]
[1717587658816,0.22247929,70918.0,70917.0,0.01526629]
[1717587659036,0.21877929,70918.0,70917.0,0.01526629]
[1717587662411,0.21967929,70918.0,70917.0,0.01526629]
[1717587662819,0.22337929,70918.0,70917.0,0.01526629]
[1717587663598,0.27881732,70918.0,70917.0,0.000946]
[1717587663801,0.27881732,70918.0,70905.0,0.241978]
[1717587663802,0.00045937,70912.0,70907.0,0.01774074]
[1717587664000,0.06725937,70912.0,70911.0,0.01632029]
[1717587664356,0.07432423,70912.0,70911.0,0.01632029]
[1717587665336,0.07386486,70912.0,70911.0,0.01632029]
[1717587665879,0.07386486,70912.0,70911.0,0.09202029]
[1717587668969,0.07386486,70912.0,70911.0,0.0777]
[1717587669360,0.0668,70912.0,70911.0,0.0777]
[1717587669999,0.0738603,70912.0,70911.0,0.0777]
[1717587670979,0.07431967,70912.0,70911.0,0.0777]
[1717587671508,0.07431967,70912.0,70911.0,0.07978]
[1717587671902,0.06725937,70912.0,70911.0,0.07978]
[1717587673060,0.0668,70912.0,70911.0,0.07978]
[1717587673260,0.14901893,70918.0,70912.0,0.2]
[1717587673261,0.14441893,70918.0,70912.0,0.2]
[1717587673460,0.00045937,70920.0,70911.0,0.29410029]
[1717587673461,0.0668,70913.0,70911.0,0.29410029]
[1717587673685,0.0668,70913.0,70912.0,0.2]
[1717587673977,0.0738603,70913.0,70912.0,0.2]
[1717587674372,0.0738603,70913.0,70911.0,0.09410029]
[1717587674821,0.0668,70913.0,70911.0,0.09410029]
[1717587676041,0.00704958,70912.0,70911.0,0.09410029]
[1717587677197,0.00704958,70912.0,70911.0,0.43512129]
[1717587677411,0.00704958,70912.0,70911.0,0.61246192]
[1717587677613,0.19,70923.0,70918.0,0.0781]
[1717587677835,0.14441893,70922.0,70919.0,0.0781]
[1717587678031,0.0668,70920.0,70919.0,0.0781]
[1717587678188,0.21816948,70920.0,70919.0,0.0781]
[1717587681409,0.21816948,70920.0,70919.0,0.2781]
[1717587681410,0.07375055,70920.0,70919.0,0.2781]
[1717587681616,0.00695055,70920.0,70919.0,0.59074563]
[1717587681818,0.00695055,70920.0,70919.0,0.60848637]
[1717587681819,0.07375055,70920.0,70919.0,0.60848637]
[1717587682068,0.42179,70925.0,70924.0,0.58953563]
[1717587682301,0.48859,70925.0,70924.0,0.58953563]
[1717587682543,0.42179,70925.0,70924.0,0.58953563]
[1717587682766,0.48859,70925.0,70924.0,0.58953563]
[1717587682950,0.42179,70925.0,70924.0,0.58953563]
[1717587683218,0.48859,70925.0,70924.0,0.58953563]
[1717587683427,0.42179,70925.0,70924.0,0.58953563]
[1717587683633,0.48859,70925.0,70924.0,0.58953563]
[1717587684702,0.42179,70925.0,70924.0,0.87152663]
[1717587684932,0.48859,70925.0,70924.0,0.87152663]
[1717587685157,0.42179,70925.0,70924.0,0.87152663]
[1717587685388,0.42179,70937.0,70936.0,0.4323]
[1717587685606,0.0668,70937.0,70936.0,0.44662029]
[1717587686227,0.0668,70937.0,70936.0,0.24662029]
[1717587686437,0.0668,70937.0,70936.0,0.44662029]
[1717587687067,0.0668,70937.0,70936.0,0.24662029]
[1717587687242,0.0668,70937.0,70936.0,0.44662029]
[1717587688199,0.0668,70937.0,70936.0,0.2323]
[1717587689987,0.06725937,70937.0,70931.0,0.2422]
[1717587690165,0.0668,70932.0,70931.0,0.383182]
[1717587690668,0.0668,70932.0,70931.0,0.140982]
[1717587690870,0.00045937,70929.0,70927.0,0.140989]
[1717587691192,0.0668,70929.0,70927.0,0.140989]
[1717587691399,0.00701966,70928.0,70927.0,0.140989]
[1717587695064,0.00701966,70928.0,70927.0,0.340989]
[1717587696283,0.00701966,70928.0,70927.0,0.140989]
[1717587696703,0.00701966,70928.0,70927.0,0.36052963]
[1717587696864,0.0668,70928.0,70927.0,0.36052963]
[1717587697270,0.0668,70928.0,70927.0,0.340989]
[1717587697904,0.0668,70928.0,70927.0,0.36052963]
[1717587698264,0.14441893,70932.0,70929.0,0.140985]
[1717587698464,0.0668,70930.0,70929.0,0.340985]
[1717587698664,0.21823846,70930.0,70929.0,0.340985]
[1717587700323,0.21823846,70930.0,70929.0,0.140985]
[1717587700683,0.21121893,70930.0,70929.0,0.140985]
[1717587700883,0.21822887,70930.0,70929.0,0.140985]
[1717587702381,0.00700994,70930.0,70929.0,0.340985]
[1717587702582,0.42179,70937.0,70929.0,0.59292563]
[1717587702899,0.15143484,70936.0,70935.0,0.373373]
[1717587703129,0.21823484,70936.0,70935.0,0.373373]
[1717587704543,0.21823484,70936.0,70935.0,0.140973]
[1717587707911,0.21823484,70936.0,70931.0,0.14098]
[1717587707912,0.00045937,70935.0,70931.0,0.14098]
[1717587708124,0.0668,70932.0,70931.0,0.14098]
[1717587708684,0.07374235,70932.0,70931.0,0.14098]
[1717587712335,0.07374235,70932.0,70931.0,0.34098]
[1717587713306,0.07374235,70932.0,70931.0,0.14098]
[1717587718638,0.07374235,70932.0,70931.0,0.34098]
[1717587719799,0.07374235,70932.0,70931.0,0.14098]
[1717587720163,0.07374235,70932.0,70931.0,0.34098]
[1717587722358,0.07374235,70932.0,70931.0,0.14098]
[1717587723821,0.07460235,70932.0,70931.0,0.14098]
[1717587725448,0.00780235,70932.0,70931.0,0.34098]
[1717587725661,0.06766,70932.0,70931.0,0.34098]
[1717587726319,0.06766,70932.0,70931.0,0.14098]
[1717587727462,0.06766,70932.0,70931.0,0.34098]
[1717587728289,0.06766,70932.0,70931.0,0.36052063]
[1717587728692,0.06766,70932.0,70931.0,0.34098]
[1717587729111,0.06766,70932.0,70931.0,0.36052063]
[1717587729309,0.06766,70932.0,70931.0,0.14098]
[1717587730048,0.00086,70932.0,70931.0,0.60202063]
[1717587730223,0.00086,70932.0,70931.0,0.88398463]
[1717587730437,0.06766,70932.0,70931.0,1.00172537]
[1717587730867,0.06766,70932.0,70931.0,1.06501783]
[1717587731068,0.06766,70932.0,70931.0,1.00172537]
[1717587731263,0.06766,70932.0,70931.0,1.06495649]
[1717587731463,0.06766,70932.0,70931.0,1.00172537]
[1717587732997,0.06766,70932.0,70931.0,1.04387122]
[1717587733222,0.06766,70932.0,70931.0,1.00172537]
[1717587736000,0.00086,70932.0,70931.0,1.00172537]
[1717587736183,0.00086,70932.0,70931.0,1.4381083]
[1717587736990,0.00086,70932.0,70931.0,1.5012755]
[1717587737190,0.00086,70932.0,70931.0,1.4381083]
[1717587737597,0.00086,70932.0,70931.0,1.50125857]
[1717587738001,0.00086,70932.0,70931.0,1.06487564]
[1717587738405,0.00086,70932.0,70931.0,1.00172537]
[1717587743514,0.00086,70932.0,70931.0,0.14098]
[1717587751312,0.00086,70932.0,70931.0,0.58742063]
[1717587751313,0.06766,70932.0,70931.0,0.58742063]
[1717587752986,0.00086,70932.0,70931.0,0.60516137]
[1717587753169,0.06766,70932.0,70931.0,0.70516137]
[1717587753384,0.06766,70932.0,70931.0,0.98712537]
[1717587753785,0.06766,70932.0,70931.0,0.99712537]
[1717587754585,0.00086,70932.0,70931.0,0.99712537]
[1717587755972,0.00086,70932.0,70931.0,0.98712537]
[1717587756555,0.00086,70932.0,70931.0,0.99712537]
[1717587758458,0.06766,70932.0,70931.0,0.99712537]
[1717587758581,0.06766,70932.0,70931.0,1.4235083]
[1717587758582,0.00086,70932.0,70931.0,1.4235083]
[1717587759023,0.00086,70932.0,70931.0,1.48662775]
[1717587759233,0.00086,70932.0,70931.0,1.4235083]
[1717587759379,0.00086,70932.0,70931.0,1.48659783]
[1717587760443,0.00086,70932.0,70931.0,1.4235083]
[1717587761495,0.00086,70932.0,70931.0,1.46556471]
[1717587761922,0.00086,70932.0,70931.0,1.4235083]
[1717587763535,0.00086,70932.0,70931.0,1.46556277]
[1717587766500,0.00086,70932.0,70931.0,1.4135083]
[1717587767507,0.00086,70932.0,70931.0,1.4235083]
[1717587769243,0.00086,70932.0,70931.0,1.46556376]
[1717587770861,0.00086,70932.0,70931.0,0.98712537]
[1717587775570,0.06766,70932.0,70931.0,0.98712537]
[1717587775770,0.00086,70932.0,70931.0,0.98712537]
[1717587776137,0.06766,70932.0,70931.0,0.98712537]
[1717587776754,0.06766,70932.0,70931.0,0.14098]
[1717587776961,0.07226,70932.0,70931.0,0.14098]
[1717587780074,0.07226,70932.0,70931.0,0.34098]
[1717587780632,0.07226,70932.0,70931.0,0.14098]
[1717587780875,0.07226,70932.0,70931.0,0.34098]
[1717587781075,0.07226,70932.0,70931.0,0.36052063]
[1717587781905,0.00546,70932.0,70931.0,0.36052063]
[1717587782114,0.07226,70932.0,70931.0,0.34098]
[1717587783067,0.07226,70932.0,70931.0,0.14098]
[1717587785475,0.07226,70932.0,70931.0,0.34098]
[1717587786174,0.07226,70932.0,70931.0,0.14098]
[1717587787789,0.07136,70932.0,70931.0,0.14098]
[1717587787995,0.07827603,70932.0,70931.0,0.34098]
[1717587789069,0.07827603,70932.0,70931.0,0.14098]
[1717587789411,0.07136,70932.0,70931.0,0.14098]
[1717587789878,0.07823956,70932.0,70931.0,0.14098]
[1717587790015,0.07136,70932.0,70931.0,0.14098]
[1717587790214,0.07823956,70932.0,70931.0,0.14098]
[1717587790986,0.07453956,70932.0,70931.0,0.57988]
[1717587791192,0.00086,70932.0,70931.0,0.59942063]
[1717587791348,0.06766,70932.0,70931.0,0.59942063]
[1717587794753,0.00086,70932.0,70931.0,0.59942063]
[1717587794955,0.06766,70932.0,70931.0,0.59942063]
[1717587795152,0.06766,70932.0,70931.0,0.57988]
[1717587795295,0.06766,70932.0,70931.0,0.59942063]
[1717587798696,0.00086,70932.0,70931.0,0.88138463]
[1717587798912,0.06766,70932.0,70931.0,0.88138463]
[1717587799077,0.00086,70932.0,70931.0,1.17375413]
[1717587799289,0.06766,70932.0,70931.0,1.17375413]
[1717587801445,0.00086,70932.0,70931.0,1.17375413]
[1717587801619,0.00086,70932.0,70931.0,1.4459138]
[1717587802068,0.00086,70932.0,70931.0,1.7278778]
[1717587802273,0.00086,70932.0,70931.0,1.4459138]
[1717587802562,0.00086,70932.0,70931.0,1.7278778]
[1717587803108,0.00086,70932.0,70931.0,1.4459138]
[1717587803457,0.00086,70932.0,70931.0,1.7278778]
[1717587803643,0.00086,70932.0,70931.0,2.0591278]
[1717587803839,0.00086,70932.0,70931.0,2.2591278]
[1717587804139,0.00086,70939.0,70938.0,0.91828537]
[1717587804340,0.00749918,70939.0,70938.0,1.80006283]
[1717587804540,0.00086,70939.0,70938.0,1.80006283]
[1717587804720,0.00086,70939.0,70938.0,3.5601625]
[1717587804933,0.00086,70939.0,70938.0,3.8580278]
[1717587805181,0.42179,70953.0,70952.0,0.91270137]
[1717587805377,0.00486,70959.0,70958.0,0.55120937]
[1717587805723,0.07166,70959.0,70958.0,0.94343572]
[1717587806156,0.07166,70959.0,70958.0,1.13323672]
[1717587806861,0.07166,70959.0,70958.0,1.41509272]
[1717587807403,0.07166,70959.0,70958.0,1.40509272]
[1717587807624,0.07166,70959.0,70958.0,1.21529172]
[1717587807829,0.07166,70959.0,70958.0,0.92306537]
[1717587807961,0.00486,70959.0,70958.0,0.92306537]
[1717587811078,0.17176,70959.0,70958.0,0.45866874]
[1717587811283,0.17176,70959.0,70958.0,0.47820937]
[1717587814294,0.17176,70959.0,70958.0,0.25866874]
[1717587814454,0.17176,70959.0,70958.0,0.47820937]
[1717587814659,0.17176,70959.0,70958.0,0.25866874]
[1717587814862,0.17176,70959.0,70958.0,0.240928]
[1717587815060,0.17176,70959.0,70958.0,0.15866874]
[1717587816493,0.17176,70959.0,70958.0,0.37116525]
[1717587816942,0.17176,70959.0,70958.0,0.35342451]
[1717587817264,0.00486,70959.0,70958.0,0.66302125]
[1717587817392,0.00486,70959.0,70958.0,0.84062125]
[1717587821451,0.00486,70959.0,70958.0,1.14014018]
[1717587825419,0.00486,70959.0,70958.0,1.42199618]
[1717587825837,0.00486,70959.0,70958.0,1.70605318]
[1717587828451,0.00486,70959.0,70958.0,1.90605318]
[1717587828654,0.00486,70959.0,70958.0,2.18790918]
[1717587828871,0.00486,70959.0,70958.0,2.20503533]
[1717587829066,0.0009,70969.0,70968.0,0.95182337]
[1717587829288,0.0009,70969.0,70968.0,1.45316259]
[1717587829491,0.00766811,70969.0,70968.0,1.45316259]
[1717587829691,0.0009,70969.0,70968.0,1.45316259]
[1717587833108,0.0009,70969.0,70968.0,1.4388423]
[1717587833340,0.0009,70969.0,70968.0,1.44316259]
[1717587834095,0.0009,70969.0,70968.0,1.45316259]
[1717587834299,0.0009,70969.0,70968.0,1.4388423]
[1717587834497,0.0009,70969.0,70968.0,1.4288423]
[1717587835097,0.0009,70969.0,70968.0,1.4388423]
[1717587839038,0.0009,70969.0,70968.0,1.4288423]
[1717587839672,0.0009,70969.0,70968.0,1.4388423]
[1717587840276,0.0009,70969.0,70968.0,1.4288423]
[1717587840476,0.0676,70969.0,70968.0,1.4288423]
[1717587841967,0.0676,70969.0,70968.0,1.04182337]
[1717587842520,0.0009,70969.0,70968.0,1.1862423]
[1717587842758,0.0009,70969.0,70968.0,1.1413253]
[1717587842759,0.0676,70969.0,70968.0,1.1413253]
[1717587842927,0.0676,70969.0,70968.0,0.76000637]
[1717587843272,0.0676,70969.0,70968.0,0.77703341]
[1717587843674,0.0685,70969.0,70968.0,0.75749278]
[1717587843921,0.0685,70969.0,70968.0,0.74046574]
[1717587844121,0.0676,70969.0,70968.0,0.74046574]
[1717587844393,0.0676,70969.0,70968.0,0.76000637]
[1717587845180,0.0676,70969.0,70968.0,0.74046574]
[1717587846178,0.0676,70969.0,70968.0,0.76000637]
[1717587847170,0.0676,70969.0,70968.0,0.74046574]
[1717587847858,0.0739,70969.0,70968.0,0.25864874]
[1717587848317,0.0739,70969.0,70968.0,0.240908]
[1717587849296,0.0739,70969.0,70968.0,0.25864874]
[1717587850039,0.0739,70969.0,70968.0,0.240908]
[1717587850292,0.0739,70969.0,70968.0,0.25864874]
[1717587850619,0.0739,70969.0,70968.0,0.240908]
[1717587851671,0.0739,70969.0,70968.0,0.240908]
[1717587852179,0.0063,70962.0,70961.0,0.140922]
[1717587852358,0.07345937,70962.0,70961.0,0.15524229]
[1717587852557,0.073,70962.0,70961.0,0.15524229]
[1717587852765,0.07980634,70962.0,70961.0,0.15524229]
[1717587853943,0.01310634,70962.0,70961.0,0.15524229]
[1717587854192,0.073,70962.0,70961.0,0.15524229]
[1717587854413,0.07980634,70962.0,70961.0,0.15524229]
[1717587857436,0.07980634,70962.0,70961.0,0.140922]
[1717587857637,0.07980634,70962.0,70961.0,0.340922]
[1717587858656,0.00680634,70962.0,70961.0,0.36046263]
[1717587858825,0.00716,70969.0,70968.0,0.340908]
[1717587859049,0.01393251,70969.0,70968.0,0.15522829]
[1717587859200,0.08063251,70969.0,70968.0,0.15522829]
[1717587859852,0.08063251,70969.0,70968.0,0.35522829]
[1717587860170,0.08063251,70969.0,70968.0,0.15522829]
[1717587860527,0.08063251,70969.0,70968.0,0.35522829]
[1717587860724,0.01393251,70969.0,70968.0,0.35522829]
[1717587860949,0.08063251,70969.0,70968.0,0.35522829]
[1717587861533,0.08063251,70969.0,70968.0,0.15522829]
[1717587861933,0.00853251,70969.0,70968.0,0.35522829]
[1717587862253,0.07523251,70969.0,70968.0,0.35522829]
[1717587862654,0.00853251,70969.0,70968.0,0.37476892]
[1717587862875,0.06846,70969.0,70968.0,0.37476892]
[1717587863870,0.00176,70969.0,70968.0,0.61206892]
[1717587864207,0.00176,70969.0,70968.0,0.59774863]
[1717587864208,0.06846,70969.0,70968.0,0.59774863]
[1717587867107,0.00176,70969.0,70968.0,0.59774863]
[1717587867424,0.06846,70969.0,70968.0,0.59774863]
[1717587868711,0.06846,70969.0,70968.0,0.578208]
[1717587868914,0.06846,70969.0,70968.0,0.419208]
[1717587869179,0.06846,70969.0,70968.0,0.340908]
[1717587869732,0.06846,70969.0,70968.0,0.140908]
[1717587870684,0.06846,70969.0,70968.0,0.340908]
[1717587872254,0.06846,70969.0,70968.0,0.140908]
[1717587874593,0.06846,70969.0,70968.0,0.340908]
[1717587875150,0.06846,70969.0,70968.0,0.140908]
[1717587875819,0.06846,70969.0,70968.0,0.340908]
[1717587878053,0.06846,70969.0,70968.0,0.140908]
[1717587878451,0.00176,70969.0,70968.0,0.36044863]
[1717587878631,0.06846,70969.0,70968.0,0.36044863]
[1717587878839,0.06846,70969.0,70968.0,0.340908]
[1717587880330,0.06846,70969.0,70968.0,0.140908]
[1717587880968,0.06846,70969.0,70968.0,0.340908]
[1717587883064,0.06846,70969.0,70968.0,0.36044863]
[1717587883438,0.0009,70975.0,70974.0,0.140896]
[1717587883742,0.0676,70975.0,70974.0,0.140896]
[1717587884323,0.06805937,70975.0,70974.0,0.140896]
[1717587884532,0.0676,70975.0,70974.0,0.140896]
[1717587885139,0.06805937,70975.0,70974.0,0.140896]
[1717587887365,0.0676,70975.0,70974.0,0.140896]
[1717587887567,0.004,70979.0,70975.0,0.140893]
[1717587887790,0.0667,70976.0,70975.0,0.15521329]
[1717587888774,0.07395278,70976.0,70975.0,0.15521329]
[1717587889337,0.07349341,70976.0,70975.0,0.15521329]
[1717587889543,0.07395278,70976.0,70975.0,0.15521329]
[1717587892958,0.07395278,70976.0,70975.0,0.140893]
[1717587894559,0.00679341,70976.0,70975.0,0.140893]
[1717587894767,0.07349341,70976.0,70975.0,0.140893]
[1717587894971,0.0667,70976.0,70975.0,0.140893]
[1717587895873,0.0667,70976.0,70975.0,0.340893]
[1717587896046,0.07350383,70976.0,70975.0,0.140893]
[1717587898079,0.0667,70976.0,70975.0,0.140893]
[1717587898278,0.07350383,70976.0,70975.0,0.140893]
[1717587898655,0.0739632,70976.0,70975.0,0.140893]
[1717587898868,0.07350383,70976.0,70975.0,0.140893]
[1717587899547,0.0739632,70976.0,70975.0,0.140893]
[1717587901478,0.00045937,70970.0,70966.0,0.01774074]
[1717587901709,0.00045937,70970.0,70969.0,0.140906]
[1717587901929,0.00045937,70970.0,70966.0,0.03206103]
[1717587901930,0.00045937,70967.0,70966.0,0.01432029]
[1717587902144,0.1502783,70967.0,70966.0,0.01432029]
[1717587902358,0.22340649,70967.0,70966.0,0.01432029]
[1717587904189,0.00675937,70962.0,70961.0,0.0015]
[1717587904391,0.2178783,70962.0,70961.0,0.0015]
[1717587904557,0.22340262,70962.0,70961.0,0.01582029]
[1717587909498,0.22340262,70962.0,70961.0,0.0015]
[1717587911575,0.22491979,70962.0,70961.0,0.0015]
[1717587917058,0.36583979,70962.0,70961.0,0.0015]
[1717587917287,0.00045937,70960.0,70959.0,0.000946]
[1717587917513,0.1448783,70960.0,70959.0,0.01526629]
[1717587917733,0.15191969,70960.0,70959.0,0.01526629]
[1717587918432,0.29284369,70960.0,70959.0,0.01526629]
[1717587918698,0.00045937,70945.0,70943.0,0.01774074]
[1717587918938,0.00045937,70945.0,70939.0,0.0753]
[1717587918939,0.00045937,70945.0,70944.0,0.60391019]
[1717587919171,0.06715937,70945.0,70944.0,0.1528]
[1717587919429,0.06715937,70945.0,70943.0,0.01432029]
[1717587919656,0.00045937,70944.0,70943.0,0.01432029]
[1717587921451,0.00045937,70951.0,70943.0,0.01432029]
[1717587921676,0.0667,70944.0,70943.0,0.01432029]
[1717587922134,0.07418278,70944.0,70943.0,0.01432029]
[1717587923765,0.07372341,70944.0,70943.0,0.01432029]
[1717587925364,0.00702341,70944.0,70943.0,0.01432029]
[1717587925563,0.07372341,70944.0,70943.0,0.01432029]
[1717587925767,0.0667,70944.0,70943.0,0.01432029]
[1717587926224,0.07372341,70944.0,70943.0,0.01432029]
[1717587926739,0.07372341,70944.0,70942.0,0.2]
[1717587927098,0.0667,70944.0,70942.0,0.2]
[1717587927746,0.00702242,70943.0,70942.0,0.2]
[1717587928081,0.0667,70944.0,70941.0,0.491361]
[1717587928392,0.00702242,70943.0,70941.0,0.291361]
[1717587928713,0.0667,70944.0,70941.0,0.291361]
[1717587929089,0.00702142,70942.0,70941.0,0.291361]
[1717587929446,0.0667,70944.0,70941.0,0.491361]
[1717587929707,0.0667,70944.0,70942.0,0.2]
[1717587930879,0.0667,70944.0,70941.0,0.291361]
[1717587931321,0.06715937,70944.0,70941.0,0.291361]
[1717587931523,0.0667,70942.0,70941.0,0.291361]
[1717587936038,0.06317794,70942.0,70941.0,0.291361]
[1717587936243,0.0667,70942.0,70941.0,0.291361]
[1717587938690,0.0667,70942.0,70941.0,0.491361]
[1717587938896,0.0667,70942.0,70941.0,0.51090163]
[1717587939276,0.14441893,70950.0,70943.0,0.2]
[1717587939504,0.19,70953.0,70947.0,0.1517]
[1717587939667,0.19,70953.0,70948.0,0.217447]
[1717587939869,0.0667,70949.0,70948.0,0.217447]
[1717587940068,0.19,70953.0,70948.0,0.217447]
[1717587940069,0.19,70953.0,70949.0,0.140946]
[1717587940384,0.19,70953.0,70950.0,0.2]
[1717587940586,0.0667,70951.0,70950.0,0.2]
[1717587940806,0.0667,70951.0,70949.0,0.340946]
[1717587941021,0.0667,70951.0,70949.0,0.140946]
[1717587942076,0.0667,70951.0,70950.0,0.2]
[1717587942796,0.0667,70951.0,70949.0,0.140946]
[1717587947682,0.06715937,70951.0,70949.0,0.140946]
[1717587948246,0.0667,70951.0,70949.0,0.140946]
[1717587950075,0.06715937,70951.0,70949.0,0.140946]
[1717587950245,0.0667,70951.0,70949.0,0.140946]
[1717587952113,0.00695626,70950.0,70949.0,0.140946]
[1717587952907,0.00695626,70950.0,70948.0,0.0765]
[1717587954228,0.00695626,70950.0,70949.0,0.2794]
[1717587954388,0.00695626,70950.0,70949.0,0.0794]
[1717587954590,0.00695626,70950.0,70949.0,0.2794]
[1717587954995,0.00695626,70950.0,70949.0,0.29894063]
[1717587955199,0.00695626,70950.0,70949.0,0.2794]
[1717587955391,0.00695626,70950.0,70949.0,0.29894063]
[1717587955594,0.00695626,70950.0,70949.0,0.420346]
[1717587955797,0.00695626,70950.0,70949.0,0.45420692]
[1717587956174,0.0667,70950.0,70949.0,0.61050692]
[1717587957104,0.42179,70960.0,70956.0,0.2359]
[1717587957352,0.00699166,70959.0,70957.0,0.2]
[1717587957535,0.0667,70958.0,70957.0,0.34093]
[1717587958112,0.1544875,70966.0,70962.0,0.0821]
[1717587958113,0.07222824,70966.0,70962.0,0.0821]
[1717587958331,0.0667,70963.0,70960.0,0.0818]
[1717587958539,0.22667819,70965.0,70960.0,0.0818]
[1717587958540,0.0667,70961.0,70960.0,0.0818]
[1717587960274,0.00045937,70960.0,70959.0,0.1658]
[1717587960479,0.1511783,70960.0,70956.0,0.140932]
[1717587960675,0.06715937,70957.0,70956.0,0.140932]
[1717587960876,0.0667,70957.0,70956.0,0.140932]
[1717587961736,0.00045937,70966.0,70959.0,0.140924]
[1717587961931,0.42179,70968.0,70959.0,0.140924]
[1717587961932,0.14441893,70965.0,70960.0,0.2392]
[1717587962151,0.14441893,70965.0,70960.0,0.4392]
[1717587962152,0.0667,70961.0,70960.0,0.4392]
[1717587962635,0.0667,70961.0,70960.0,0.45874063]
[1717587963238,0.0667,70961.0,70960.0,0.59966463]
[1717587963603,0.0667,70961.0,70960.0,0.580124]
[1717587963810,0.0667,70961.0,70960.0,0.380124]
[1717587964016,0.0667,70961.0,70960.0,0.580124]
[1717587964629,0.0667,70961.0,70960.0,0.380124]
[1717587967063,0.07370733,70961.0,70960.0,0.380124]
[1717587969116,0.00700733,70961.0,70960.0,0.380124]
[1717587969300,0.00700733,70961.0,70960.0,0.580124]
[1717587969301,0.0667,70961.0,70960.0,0.580124]
[1717587969502,0.07370733,70961.0,70960.0,0.580124]
[1717587970632,0.07370733,70961.0,70960.0,0.380124]
[1717587971032,0.00700733,70961.0,70960.0,0.380124]
[1717587971247,0.07370733,70961.0,70960.0,0.380124]
[1717587971448,0.0667,70961.0,70960.0,0.380124]
[1717587971651,0.07370733,70961.0,70960.0,0.380124]
[1717587975007,0.0741667,70961.0,70960.0,0.140924]
[1717587975971,0.07370733,70961.0,70960.0,0.140924]
[1717587976165,0.00700733,70961.0,70960.0,0.140924]
[1717587976407,0.0667,70961.0,70960.0,0.140924]
[1717587976613,0.07370229,70961.0,70960.0,0.140924]
[1717587978720,0.07370229,70961.0,70956.0,0.14093]
[1717587978927,0.13892824,70957.0,70956.0,0.14093]
[1717587979327,0.14592655,70957.0,70956.0,0.14093]
[1717587979534,0.07369831,70957.0,70956.0,0.14093]
[1717587980583,0.07415768,70957.0,70956.0,0.15525029]
[1717587980908,0.07369831,70957.0,70956.0,0.15525029]
[1717587981108,0.07415768,70957.0,70956.0,0.15525029]
[1717587981308,0.07369831,70957.0,70956.0,0.15525029]
[1717587981784,0.0667,70957.0,70956.0,0.15525029]
[1717587982007,0.07370207,70957.0,70956.0,0.15525029]
[1717587983271,0.0667,70957.0,70956.0,0.15525029]
[1717587983487,0.06715937,70957.0,70956.0,0.01432029]
[1717587983689,0.07909589,70957.0,70956.0,0.01432029]
[1717587984128,0.07369589,70957.0,70956.0,0.01432029]
[1717587984345,0.07415526,70957.0,70954.0,0.140936]
[1717587984608,0.00045937,70956.0,70954.0,0.15525629]
[1717587984842,0.00744274,70955.0,70954.0,0.15525629]
[1717587985256,0.04218993,70966.0,70965.0,0.36045463]
[1717587985463,0.42179,70968.0,70967.0,0.36045063]
[1717587985672,0.48849,70968.0,70967.0,0.36045063]
[1717587989954,0.0667,70968.0,70967.0,0.36045063]
[1717587992493,0.004,70979.0,70976.0,0.140891]
[1717587992707,0.004,70979.0,70977.0,0.38799]
[1717587992918,0.07322735,70978.0,70977.0,0.60753063]
[1717587993082,0.0667,70978.0,70977.0,0.60753063]
[1717587994044,0.0667,70978.0,70977.0,0.58799]
[1717587994219,0.004,70979.0,70978.0,0.36042863]
[1717587994374,0.0707,70979.0,70978.0,0.37474892]
[1717587995128,0.004,70979.0,70978.0,0.61344892]
[1717587995376,0.0707,70979.0,70978.0,0.61344892]
[1717587996521,0.0707,70979.0,70978.0,0.89522592]
[1717587996723,0.004,70979.0,70978.0,1.34916259]
[1717587996922,0.004,70979.0,70978.0,1.44916259]
[1717587997799,0.004,70979.0,70978.0,1.43916259]
[1717587998005,0.004,70979.0,70978.0,1.44916259]
[1717587999508,0.004,70979.0,70978.0,1.4348423]
[1717588001502,0.004,70979.0,70978.0,1.4248423]
[1717588001710,0.0707,70979.0,70978.0,1.4248423]
[1717588002795,0.0707,70979.0,70978.0,1.1430653]
[1717588003403,0.0707,70979.0,70978.0,0.99864637]
[1717588006020,0.004,70979.0,70978.0,1.4248423]
[1717588006245,0.004,70979.0,70978.0,1.4348423]
[1717588006246,0.0707,70979.0,70978.0,1.4348423]
[1717588006447,0.004,70979.0,70978.0,1.4348423]
[1717588007211,0.004,70979.0,70978.0,1.1430653]
[1717588008049,0.004,70979.0,70978.0,1.4348423]
[1717588010385,0.004,70979.0,70978.0,1.1530653]
[1717588010780,0.004,70979.0,70978.0,1.4348423]
[1717588010987,0.004,70979.0,70978.0,1.1430653]
[1717588012250,0.004,70979.0,70978.0,1.4248423]
[1717588012616,0.004,70979.0,70978.0,1.1430653]
[1717588014131,0.004,70979.0,70978.0,1.1530653]
[1717588014365,0.004,70979.0,70978.0,1.1430653]
[1717588014951,0.07622824,70979.0,70978.0,0.99864637]
[1717588015555,0.004,70979.0,70978.0,0.99864637]
[1717588015954,0.0707,70979.0,70978.0,0.99864637]
[1717588021779,0.004,70979.0,70978.0,0.99864637]
[1717588021988,0.0707,70979.0,70978.0,0.99864637]
[1717588024443,0.004,70979.0,70978.0,0.9984169]
[1717588024649,0.0707,70979.0,70978.0,0.9984169]
[1717588030179,0.07156,70979.0,70978.0,0.9984169]
[1717588033593,0.00486,70979.0,70978.0,0.9984169]
[1717588033814,0.07156,70979.0,70978.0,0.9984169]
[1717588034854,0.07156,70979.0,70978.0,0.7597169]
[1717588035266,0.00486,70979.0,70978.0,0.7597169]
[1717588035569,0.07156,70979.0,70978.0,0.7597169]
[1717588036013,0.00486,70979.0,70978.0,0.7597169]
[1717588036212,0.07156,70979.0,70978.0,0.7597169]
[1717588037543,0.00486,70979.0,70978.0,0.7597169]
[1717588037827,0.07156,70979.0,70978.0,0.7597169]